{"text_format":"1","workbook":"xlsx","n_sheets":1,"sheets":["conceptos"],"not_rendered":{"charts":0,"images":2,"macros":1,"external_links":0,"defined_names":1,"comments":0,"pivot_tables":0},"unopened":[],"bounds":{"document_bytes":16777216,"sheet_cells":100000,"rows_first":2000,"rows_last":500,"rows_between":2000,"halvings":0,"cell_chars":16384,"cell_head_chars":4096},"cells_cut":0,"cells_raw":0,"read":"whole","date_system":"1900"}

{"sheet":"conceptos","index":0,"n_rows":86,"n_cols":8,"rows_kept":86,"cut":false,"hidden":false,"merged":[[83,0,83,4],[84,0,85,4],[13,0,13,6],[0,2,0,5],[9,2,9,5],[1,2,3,5],[4,2,4,3],[6,2,6,3],[7,2,7,3],[4,4,4,5],[5,4,5,5],[6,4,6,5],[7,4,7,5],[10,2,10,5],[11,2,11,5],[5,1,8,1]]}
[null,"GOBIERNO DEL ESTADO DE JALISCO","LICITACIÓN PÚBLICA ESTATAL"]
[null,"INSTITUTO DE LA INFRAESTRUCTURA FÍSICA EDUCATIVA DEL","E-REM-B-CON-03577-LP-0069-2020"]
[null,"ESTADO DE JALISCO"]
[]
[null,"DESCRIPCIÓN GENERAL DE LOS TRABAJOS:","FECHA DE INICIO:"]
[null,null,null,"FECHA DE TERMINACIÓN:"]
[null,null,"PLAZO DE EJECUCIÓN:"]
[null,null,"FECHA:"]
[]
[null,"RAZÓN SOCIAL DEL LICITANTE:","NOMBRE, CARGO Y FIRMA DEL LICITANTE:",null,null,null,"DOCUMENTO"]
[]
[]
[]
["PRESUPUESTO DE OBRA"]
[]
["CLAVE","DESCRIPCIÓN","UNIDAD","CANTIDAD","PRECIO UNITARIO ($)","PRECIO UNITARIO ($) CON LETRA","IMPORTE ($) M.N."]
["TRABAJO : BAS-CON-03577","CONSTRUCCIÓN DE ESTRUCTURA CON LONARIA Y REHABILITACIÓN GENERAL EN LA ESCUELA PRIMARIA JOSÉ CLEMENTE OROZCO CCT 14EPR1034W, UBICADA EN LA CABECERA MUNICIPAL DE TAMAZULA DE GORDIANO, JALISCO.",null,null,null,null,{"$f":"TEXT(SUM(G18 + G31), \"$ #,##0.00 ;\")","v":"$ 0.00 "}]
["01","PLAZA Y ANDADORES",null,null,null,null,{"$f":"TEXT(SUM(G19 + G21 + G23 + G25 + G27 + G29), \"$ #,##0.00 ;\")","v":"$ 0.00 "}]
["01.01(140)","DEMOLICIONES, DESMONTAJES Y MECANICA DE SUELOS    ",null,null,null,null,{"$f":"TEXT(SUM(G20:G20), \"$ #,##0.00 ;\")","v":"$ 0.00 "}]
[140602,"DEMOLICION DE FIRME Y/O PISO DE CONCRETO DE 10 CM DE ESPESOR PROMEDIO, EN SECCIONES OBLIGADAS, INC. CORTE CON DISCO PARA DELIMITAR AREA DE DEMOLICION; MANO DE OBRA, HERRAMIENTA, EQUIPO,  CARGA Y ACARREO INTERIOR Y FUERA DE LA OBRA DEL MATERIAL PRODUCTO DE LA DEMOLICION.","M2 ","150.0000",0,"CERO PESOS 00/100 M.N.",0,264375]
["01.02(150)","TRABAJOS PRELIMINARES                             ",null,null,null,null,{"$f":"TEXT(SUM(G22:G22), \"$ #,##0.00 ;\")","v":"$ 0.00 "}]
[152044,"EXCAVACION EN CEPAS POR MEDIOS MANUALES EN MATERIAL TIPO \"B\", DE 0 A 2.00 M. DE PROFUNDIDAD, EN SECO, INCLUYE: AFINE DE TALUDES Y FONDO, TRASPALEOS,  MOVIMIENTOS Y ACARREOS DENTRO DE LA OBRA, HERRAMIENTAS Y MANO DE OBRA, MEDIDO EN BANCO.","M3 ","45.0000",0,"CERO PESOS 00/100 M.N.",0,264378]
["01.03(160)","CIMENTACION                                       ",null,null,null,null,{"$f":"TEXT(SUM(G24:G24), \"$ #,##0.00 ;\")","v":"$ 0.00 "}]
[180211,"RELLENO DE CEPAS  Y/O CAJON COMPACTADO POR CUALQUIER MEDIO CON SUELO-CEMENTO (CON MATERIAL PRODUCTO DE EXCAVACION) EN PROPORCIÓN DE 80 KGS. DE CEMENTO GRIS POR M3., A CUALQUIER PROFUNDIDAD, COMPACTADO AL 95%, EN CAPAS DE 15 CM. (MEDIDO EN BANCO), INCLUYE: SUMINISTRO DE AGUA PARA LOGRAR HUMEDAD OPTIMA, MEZCLACO, TENDIDO, TRASPALEOS,  DESPERDICIOS, EQUIPO, PRUEBAS DE COMPACTACION, AFINE, NIVELACION, HERRAMIENTAS, MANO DE OBRA Y  ACARREO HASTA EL SITIO DE SU COLOCACION.  (VOLUMEN MEDIDO COMPACTADO).","M3 ","45.0000",0,"CERO PESOS 00/100 M.N.",0,264390]
["01.04(372)","PISOS                                             ",null,null,null,null,{"$f":"TEXT(SUM(G26:G26), \"$ #,##0.00 ;\")","v":"$ 0.00 "}]
[373022,"PISO DE CONCRETO F'C=150 KG/CM², T.M.A. 3/4\", DE 0.10 M. DE ESPESOR, COLADO EN CUADROS NO MAYORES DE 3.00 ML POR LADO, INCLUYE: TRAZO, NIVELACION, AFINE Y COMPACTACION DEL TERRENO, AGUA, DESPERDICIOS, ACARREOS, REGLEADO, ACABADO INTEGRAL RAYADO CON BROCHA DE PELO (SIN UTILIZACION DE PASTA), CIMBRA EN FRONTERAS, DESCIMBRA, COLADO, CURADO, REMATES, ESCALONADO, MUESTREADO, JUNTAS FRIAS CON VOLTEADOR, HERRAMIENTAS Y MANO DE OBRA.","M2 ","150.0000",0,"CERO PESOS 00/100 M.N.",0,264398]
["01.05(393)","PINTURA                                           ",null,null,null,null,{"$f":"TEXT(SUM(G28:G28), \"$ #,##0.00 ;\")","v":"$ 0.00 "}]
[393022,"PINTURA VINIL-ACRÍLICA A BASE DE AGUA ACABADO SEMIMATE  LAVABLE, PARA INTERIORES Y EXTERIORES QUE NO DESPRENDA VAPORES TÓXICOS NI OLORES DESAGRADABLES, CON LAS SIGUIENTES CARACTERÍSTICAS ( SÓLIDOS POR PESO 46-52%, SÓLIDOS POR VOLUMEN 30-36%, VISCOSIDAD DE 100-130 UK A 25°C, DENSIDAD > O = 1.2 TON/M3., LAVABILIDAD > O = 4,000 CICLOS, TIEMPO DE SECADO AL TACTO, 30-40 MIN., TIEMPO DE SECADO DURO < O = 8 HRS., CICLO DE CURADO DE 7 DIAS, PH 6-8, RENDIMIENTO EN SUP. LISA 8-10 M2/LT., FINEZA DE MOLIDO (HEGMAN) 3-7 UH.)  EN MUROS APLANADOS DE MEZCLA APALILLADO O PULIDO, TRABAJO TERMINADO, A DOS MANOS, INCLUYE: MATERIALES MENORES Y DE CONSUMO, ANDAMIOS, PREPARACION DE LA SUPERFICIE, SELLADO DE LA SUPERFICIE, HERRAMIENTAS, LIMPIEZA, MANO DE OBRA Y  ACARREOS DE MATERIALES AL SITIO DE SU UTILIZACIÓN.","M2 ","600.0000",0,"CERO PESOS 00/100 M.N.",0,264400]
["01.06(396)","LIMPIEZA                                          ",null,null,null,null,{"$f":"TEXT(SUM(G30:G30), \"$ #,##0.00 ;\")","v":"$ 0.00 "}]
[396012,"LIMPIEZA DE PISOS DE CONCRETO CON AGUA Y ACIDO MURIATICO AL 10%.","M2 ","150.0000",0,"CERO PESOS 00/100 M.N.",0,264404]
[82,"CUBIERTA PARA PATIO CIVICO",null,null,null,null,{"$f":"TEXT(SUM(G32 + G34 + G38 + G50 + G55 + G57 + G59 + G63), \"$ #,##0.00 ;\")","v":"$ 0.00 "}]
["82.01(140)","DEMOLICIONES, DESMONTAJES Y MECANICA DE SUELOS    ",null,null,null,null,{"$f":"TEXT(SUM(G33:G33), \"$ #,##0.00 ;\")","v":"$ 0.00 "}]
[140602,"DEMOLICION DE FIRME Y/O PISO DE CONCRETO DE 10 CM DE ESPESOR PROMEDIO, EN SECCIONES OBLIGADAS, INC. CORTE CON DISCO PARA DELIMITAR AREA DE DEMOLICION; MANO DE OBRA, HERRAMIENTA, EQUIPO,  CARGA Y ACARREO INTERIOR Y FUERA DE LA OBRA DEL MATERIAL PRODUCTO DE LA DEMOLICION.","M2 ","22.5000",0,"CERO PESOS 00/100 M.N.",0,264376]
["82.02(150)","TRABAJOS PRELIMINARES                             ",null,null,null,null,{"$f":"TEXT(SUM(G35:G37), \"$ #,##0.00 ;\")","v":"$ 0.00 "}]
[150120,"TRAZO Y NIVELACION DE EXTERIORES ESTABLECIENDO REFERENCIAS DEFINITIVAS, CON TRANSITO Y NIVEL (EQUIPO TOPOGRAFICO), INCLUYE: PERSONAL TECNICO CALIFICADO, ESTACAS, MOJONERAS, LOCALIZACION DE EJES Y/O ENTRE EJES, BANCOS DE NIVEL, MATERIALES PARA SEÑALAMIENTO, EQUIPO, HERRAMIENTA Y MANO DE OBRA.","M2 ","569.8000",0,"CERO PESOS 00/100 M.N.",0,264377]
[152044,"EXCAVACION EN CEPAS POR MEDIOS MANUALES EN MATERIAL TIPO \"B\", DE 0 A 2.00 M. DE PROFUNDIDAD, EN SECO, INCLUYE: AFINE DE TALUDES Y FONDO, TRASPALEOS,  MOVIMIENTOS Y ACARREOS DENTRO DE LA OBRA, HERRAMIENTAS Y MANO DE OBRA, MEDIDO EN BANCO.","M3 ","49.5000",0,"CERO PESOS 00/100 M.N.",0,264379]
[156002,"CARGA POR CUALQUIER MEDIO Y ACARREO EN CAMION DE MATERIAL DE DESPERDICIO PRODUCTO DE LAS EXCAVACIONES FUERA DE LA OBRA, A LUGAR PERMITIDO POR LAS AUTORIDADES CORRESPONDIENTES, MEDIDO EN BANCO. INCLUYE CARGA,  ACARREO Y DESCARGA A TIRO LIBRE, HERRAMIENTA, EQUIPO, MATERIALES DE CONSUMO Y MANO DE OBRA.","M3 ","49.5000",0,"CERO PESOS 00/100 M.N.",0,264380]
["82.03(160)","CIMENTACION                                       ",null,null,null,null,{"$f":"TEXT(SUM(G39:G49), \"$ #,##0.00 ;\")","v":"$ 0.00 "}]
[160092,"PLANTILLA DE RELLENO DE EMBECO NO. 636, DE 5.0 CM DE ESPESOR PROMEDIO, PARA RECIBIR PLACA BASE DE COLUMNAS DE ESTRUCTURA METALICAS, INCLUYE: PREPARACION, CIMBRA, DECIMBRADO, MATERIALES, DESPERDICIOS, HERRAMIENTAS, LIMPIEZAS Y MANO DE OBRA.","M2 ","2.0000",0,"CERO PESOS 00/100 M.N.",0,264381]
[160222,"PLANTILLA DE CONCRETO F'C=100 KG/CM2, TMA=3/4\", DE 5.00 CM DE ESPESOR PROMEDIO. INCLUYE: MATERIALES, HERRAMIENTAS, AFINE, NIVELACION, LIMPIEZA, MANO DE OBRA Y ACARREO DE MATERIALES AL SITIO DE SU UTILIZACION.","M2 ","22.5000",0,"CERO PESOS 00/100 M.N.",0,264382]
[170012,"CIMBRA  ACABADO COMUN, EN CIMENTACION, INCLUYE: DESPERDICIO, HABILITADO, CIMBRADO Y DESCIMBRA, NIVELACION, PLOMEO MATERIAL, MANO DE OBRA , LIMPIEZA, HERRAMIENTA, ACARREO DEL MATRIAL DENTRO Y FUERA DE LA OBRA.","M2 ","29.0000",0,"CERO PESOS 00/100 M.N.",0,264383]
[173003,"SUMINISTRO, HABILITADO, ARMADO Y COLOCACION DE ACERO DE REFUERZO FY=4,200 KG/CM2 (G.E.), DE 3/8\" ( #3 ), EN CIMENTACION, INCLUYE: MATERIALES, HABILITADO,  DOBLECES,  SILLETAS, ALAMBRE, GANCHOS, ESCUADRAS, TRASLAPES, DESPERDICIOS HERRAMIENTAS, MANO DE OBRA Y ACARREO DE MATERIALES AL SITIO DE SU COLOCACION.","KG ","245.0000",0,"CERO PESOS 00/100 M.N.",0,264384]
[173004,"SUMINISTRO, HABILITADO, ARMADO Y COLOCACION DE ACERO DE REFUERZO FY=4,200 KG/CM2 (G.E.), DE 1/2\" ( #4 ), EN CIMENTACION, INCLUYE: MATERIALES, HABILITADO,  DOBLECES,  SILLETAS, ALAMBRE, GANCHOS, ESCUADRAS, TRASLAPES, DESPERDICIOS HERRAMIENTAS, MANO DE OBRA Y ACARREO DE MATERIALES AL SITIO DE SU COLOCACION.","KG ","115.0000",0,"CERO PESOS 00/100 M.N.",0,264385]
[173008,"SUMINISTRO, HABILITADO, ARMADO Y COLOCACION DE ACERO DE REFUERZO FY=4,200 KG/CM2 (G.E.), DE 1\" (#8 ), EN CIMENTACION, INCLUYE: MATERIALES, HABILITADO,  DOBLECES,  SILLETAS, ALAMBRE, GANCHOS, ESCUADERAS, TRASLAPES, DESPERDICIOS HERRAMIENTAS, MANO DE OBRA Y ACARREO DE MATERIALES AL SITIO DE SU COLOCACION.","KG ","515.0000",0,"CERO PESOS 00/100 M.N.",0,264386]
[176008,"SUMINISTRO Y COLOCACION DE CONCRETO HECHO EN OBRA F'C=250 KG/CM2, TMA= 3/4\", R.N. EN CIMENTACION. INCLUYE: TENDIDO, RASTREADO, VIBRADO, NIVELACION, HERRAMIENTAS, LIMPIEZA, PRUEBAS,  CURADO CON CURACRETO ROJO,  DESPERDICIO Y MANO DE OBRA.","M3 ","6.0000",0,"CERO PESOS 00/100 M.N.",0,264387]
[180065,"RELLENO COMPACTADO CON EQUIPO MECANICO DE SUELO-GRAVA, EN CEPAS Y/O CAJON , A BASE DE MATERIAL DE BANCO  (TEPETATE, ARENA, ETC) Y GRAVA DE 3/4\" A 1 1/2\" DE DIAMETRO, CON UNA PROPORCION DE 30-70 %, EN VOLUMEN,   A CUALQUIER PROFUNDIDAD, COMPACTADO AL 95% DE SU P.V.S.M. PROCTOR, EN CAPAS DE 15 CM. INCLUYE: SUMINISTRO DE AGUA PARA LOGRAR HUMEDAD OPTIMA, MEZCLACO, TENDIDO, TRASPALEOS,  DESPERDICIOS, EQUIPO, PRUEBAS DE COMPACTACION, AFINE, NIVELACION, HERRAMIENTAS, MANO DE OBRA Y  ACARREO HASTA EL SITIO DE SU COLOCACION.  (VOLUMEN MEDIDO COMPACTADO).","M3 ","11.2500",0,"CERO PESOS 00/100 M.N.",0,264388]
[180154,"RELLENO CON MATERIAL DE BANCO, COMPACTADO AL 95% PROCTOR, EN CAPAS DE 15 CM. DE ESPESOR, AGREGANDO AGUA PARA LOGRAR SU HUMEDAD OPTIMA, POR CUALQUIER MEDIO, MEDIDO COMPACTO. INCLUYE: SUMINISTRO DE MATERIAL, PRUEBAS DE COMPACTACION, TRASPALEOS, HERRAMIENTAS, MANO DE OBRA Y  ACARREOS AL SITIO DE SU COLOCACION.","M3 ","21.0000",0,"CERO PESOS 00/100 M.N.",0,264389]
[180417,"RELLENO CON MATERIAL DE BANCO, AGREGANDO CALHIDRA EN PROPORCION 25 KG/M3, COMPACTADO AL 95% PROCTOR EN CAPAS DE 15 CM., A CUALQUIER PROFUNDIDAD, INCLUYE: MEZCLADO, TENDIDO, INCORPORACION DE AGUA PARA LOGRAR HUMEDAD OPTIMA, COMPACTACION POR MEDIOS CUALQUIER MEDIO, NIVELADO, TRASPALEOS, PRUEBAS DE COMPACTACION Y LOS ACARREOS NECESARIOS. MEDIDO COMPACTO.","M3 ","11.2500",0,"CERO PESOS 00/100 M.N.",0,264391]
[192324,"FABRICACION, SUMINISTRO Y COLOCACION DE JUEGO DE ANCLAS EN \"L\" DE REDONDO LISO (COLD ROLLED) CON 4 VARILLAS DE 1\" (#8), DE 70 CM DE DESARROLLO TOTAL (CADA ANCLA), CON 10 CM. DE ROSCA EN EXTREMO SUPERIOR, UNIDAS CON 2 ANILLETAS DE DE VARILLA CORRUGADA DE 3/8\" Y ALINEADAS A LA PLACA EN LA BASE DE COLUMNA. INCLUYE: CORTES, ROSCADO, DESPERDICIOS, ALINEACION, NIVELACION, PLOMEO, SOLDADURA, DOBLECES, TUERCAS, RONDANAS,  MANO DE OBRA, EQUIPO, HERRAMIENTA Y ACARREOS.","JGO","10.0000",0,"CERO PESOS 00/100 M.N.",0,264392]
["82.04(200)","ESTRUCTURA                                        ",null,null,null,null,{"$f":"TEXT(SUM(G51:G54), \"$ #,##0.00 ;\")","v":"$ 0.00 "}]
[280090,"SUMINISTRO, HABILITADO Y MONTAJE DE ESTRUCTURA METALICA DE ACERO ASTMA-36 F'Y=2530 KG/CM2, SOLDADOS Y/O ATORNILLADOS, (PERFILES IPR. IPS, CPS, REDONDOS SOLIDO, SOLERAS Y PLACAS, ETC, DIFERENTES DIMENSIONES Y CALIBRES,) PARA COLUMNAS, ARMADURAS, TRABES Y VIGAS, INCLUYE: MATERIALES MENORES Y DE CONSUMO, TRAZO, CORTES, AJUSTES, DESPERDICIOS, ENDEREZADO, BISELADO, DESCALIBRES, BARRENOS, TORQUES, SOLDADURA, UNA PRUEBA RADIOGRAFICA Y/O LIQUIDOS PENETRANTES POR CADA 500 KG. DE ACERO, FLETES, PINTURA ANTICORROSIVA, MANO DE OBRA CALIFICADA, HERRAMIENTA, EQUIPO, FLETES, ELEVACIONES, ACARREOS DE MATERIALES AL SITIO DE SU COLOCACION, ACUALQUIER ALTURA.","KG ","554.0000",0,"CERO PESOS 00/100 M.N.",0,264393]
[280095,"SUMINISTRO, HABILITADO Y MONTAJE DE ESTRUCTURA METALICA DE ACERO, ASTM A-500 GR-B, F'Y=3200 KG/CM2, SOLDADOS Y/O ATORNILLADOS, (OR, OC, TUBOS REDONDOS, PTR, ETC, DIFERENTES DIMENSIONES Y CALIBRES,) PARA COLUMNAS, ARMADURAS, TRABES Y VIGAS, INCLUYE: MATERIALES MENORES Y DE CONSUMO, TRAZO, CORTES, AJUSTES, DESPERDICIOS, ENDEREZADO, BISELADO, DESCALIBRES, BARRENOS, TORQUES, SOLDADURA, UNA PRUEBA RADIOGRAFICA Y/O LIQUIDOS PENETRANTES POR CADA 500 KG. DE ACERO, FLETES, PINTURA ANTICORROSIVA, MANO DE OBRA CALIFICADA, HERRAMIENTA, ANDAMIOS, EQUIPO, FLETES, ELEVACIONES, ACARREOS DE MATERIALES AL SITIO DE SU COLOCACION, A CUALQUIER ALTURA.","KG ","3,340.0000",0,"CERO PESOS 00/100 M.N.",0,264394]
[280096,"SUMINISTRO, HABILITADO, ROLADO Y MONTAJE DE ESTRUCTURA METALICA DE ACERO, ASTM A-500 GR-B, F'Y=3200 KG/CM2, SOLDADOS Y/O ATORNILLADOS, (OR, OC, TUBOS REDONDOS, PTR, ETC, DIFERENTES DIMENSIONES Y CALIBRES,) PARA COLUMNAS, ARMADURAS, TRABES Y VIGAS, INCLUYE: MATERIALES MENORES Y DE CONSUMO, TRAZO, CORTES, AJUSTES, DESPERDICIOS, ENDEREZADO, ROLADO, BISELADO, DESCALIBRES, BARRENOS, TORQUES, SOLDADURA, UNA PRUEBA RADIOGRAFICA Y/O LIQUIDOS PENETRANTES POR CADA 500 KG. DE ACERO, FLETES, PINTURA ANTICORROSIVA, MANO DE OBRA CALIFICADA, HERRAMIENTA, ANDAMIOS, EQUIPO, FLETES, ELEVACIONES, ACARREOS DE MATERIALES AL SITIO DE SU COLOCACION, A CUALQUIER ALTURA.","KG ","3,655.0000",0,"CERO PESOS 00/100 M.N.",0,264395]
[280202,"SUMINISTRO, HABILITADO  Y COLOCACION TENSORES, CRUCETAS Y/O TIRANTES DE REDONDO LISO (COLD ROLLED) DE ACERO DE BAJO CARBÓN ASTM A-108 DE ½\" A 1\" DE DIAMETRO, INCLUYE: TRAZO, CORTES, AJUSTES, BARRENOS, DESPERDICOS, DESCALIBRES, SOLDADURA DE PENETRACION, PRUEBAS RADIOGRAFICAS Y/O LIQUIDOS PENETRANTES, ROSCADO, TUERCAS, RONDANAS, TENSADO, TORQUES, FLETES, HERRAMIENTAS, ANDAMIOS, EQUIPO, PINTURA ANTICORROSIVA, MANO DE OBRA Y ACARREOS AL SITIO DE SU COLOCACION. A CUALQUIER ALTURA.","KG ","410.0000",0,"CERO PESOS 00/100 M.N.",0,264396]
["82.05(319)","ENTREPISOS, CUBIERTA Y ACABADOS DE AZOTEA         ",null,null,null,null,{"$f":"TEXT(SUM(G56:G56), \"$ #,##0.00 ;\")","v":"$ 0.00 "}]
[906752,"SUMINISTRO E INSTALACION DE MEMBRANA ARQUITECTONICA BLACK OUT PVC/PVDF, PESO 850 G/M2, TIPO I RESISTENCIA A LA RUPTURA: 3000 N/5CM, RESISTENCIA AL RASGADO 300 N, ADHESIÓN DE 100 A 120 N/5CM, AUTO-EXTINGUIBLE O TRATAMIENTO AL FUEGO, TRANSMITANCIA UV<0.1%, TRATAMIENTO ANTI-HONGOS Y DURABILIDAD DE 15 AÑOS COMO MÍNIMO, UNIDAD CON TERMO SELLADO, INCLUYE: TRAZO, CORTES, CONFECCIÓN, HERRAJES, TENSORES, MATERIALES MENORES Y DE CONSUMO, DESPERDICIOS, ELEVACIÓN, HERRAMIENTAS, EQUIPO,  ELEMENTOS DE FIJACION, SELLADO, LIMPIEZA, MANO DE OBRA ESPECIALIZADA, FLETES Y ACARREOS.","M2 ","554.9500",0,"CERO PESOS 00/100 M.N.",0,264397]
["82.06(372)","PISOS                                             ",null,null,null,null,{"$f":"TEXT(SUM(G58:G58), \"$ #,##0.00 ;\")","v":"$ 0.00 "}]
[373022,"PISO DE CONCRETO F'C=150 KG/CM², T.M.A. 3/4\", DE 0.10 M. DE ESPESOR, COLADO EN CUADROS NO MAYORES DE 3.00 ML POR LADO, INCLUYE: TRAZO, NIVELACION, AFINE Y COMPACTACION DEL TERRENO, AGUA, DESPERDICIOS, ACARREOS, REGLEADO, ACABADO INTEGRAL RAYADO CON BROCHA DE PELO (SIN UTILIZACION DE PASTA), CIMBRA EN FRONTERAS, DESCIMBRA, COLADO, CURADO, REMATES, ESCALONADO, MUESTREADO, JUNTAS FRIAS CON VOLTEADOR, HERRAMIENTAS Y MANO DE OBRA.","M2 ","22.5000",0,"CERO PESOS 00/100 M.N.",0,264399]
["82.07(393)","PINTURA                                           ",null,null,null,null,{"$f":"TEXT(SUM(G60:G62), \"$ #,##0.00 ;\")","v":"$ 0.00 "}]
[393318,"PINTURA DE ESMALTE ALQUIDALICO ANTICORROSIVO, ACABADO BRILLANTE, PARA INTERIORES Y EXTERIORES QUE NO DESPRENDA VAPORES TÓXICOS NI OLORES DESAGRADABLES, CON LAS SIGUIENTES CARACTERÍSTICAS ( SÓLIDOS POR PESO 49-60%, SÓLIDOS POR VOLUMEN 40-46%, VISCOSIDAD DE 110-160 UK A 25°C, DENSIDAD 0.9-1.2 TON/M3., BRILLO A 60°C, 90%, TIEMPO DE SECADO AL TACTO, < O = 6 HRS., TIEMPO DE SECADO DURO < O = 24 HRS., ADHERENCIA 100%, RENDIMIENTO EN SUP. LISA 8-10 M2/LT., DILUCIÓN MÁXIMA (AGUARRÁS, THINER), 15 %,  DE TUBO DE FIERRO NEGRO DE 4\" A 6\" DE DIÁMETRO, (POSTES, PASAMANOS, BARANDALES, ESTRUCTURAS, REDES, ETC.), TRABAJO TERMINADO, A DOS MANOS, INCLUYE: MATERIALES MENORES Y DE CONSUMO, PREPARACION DE LA SUPERFICIE, ANDAMIOS, HERRAMIENTAS, LIMPIEZA, MANO DE OBRA Y  EQUIPO DE SEGURIDAD. CUALQUIER ALTURA.","ML ","299.1000",0,"CERO PESOS 00/100 M.N.",0,264401]
[393319,"PINTURA DE ESMALTE ALQUIDALICO ANTICORROSIVO, ACABADO BRILLANTE, PARA INTERIORES Y EXTERIORES QUE NO DESPRENDA VAPORES TÓXICOS NI OLORES DESAGRADABLES, CON LAS SIGUIENTES CARACTERÍSTICAS ( SÓLIDOS POR PESO 49-60%, SÓLIDOS POR VOLUMEN 40-46%, VISCOSIDAD DE 110-160 UK A 25°C, DENSIDAD 0.9-1.2 TON/M3., BRILLO A 60°C, 90%, TIEMPO DE SECADO AL TACTO, < O = 6 HRS., TIEMPO DE SECADO DURO < O = 24 HRS., ADHERENCIA 100%, RENDIMIENTO EN SUP. LISA 8-10 M2/LT., DILUCIÓN MÁXIMA (AGUARRÁS, THINER), 15 %,   EN TUBO DE FIERRO NEGRO DE 3/4\" A 1 1/2\" DE DIÁMETRO, (POSTES, PASAMANOS, BARANDALES, REDES, ETC.),  TRABAJO TERMINADO, A DOS MANOS, INCLUYE: MATERIALES MENORES Y DE CONSUMO, PREPARACION DE LA SUPERFICIE, ANDAMIOS, HERRAMIENTAS, LIMPIEZA, MANO DE OBRA Y  EQUIPO DE SEGURIDAD. CUALQUIER ALTURA.","ML ","102.0000",0,"CERO PESOS 00/100 M.N.",0,264402]
[917337,"PINTURA DE ESMALTE ALQUIDALICO ANTICORROSIVO, ACABADO BRILLANTE, PARA INTERIORES Y EXTERIORES QUE NO DESPRENDA VAPORES TÓXICOS NI OLORES DESAGRADABLES, CON LAS SIGUIENTES CARACTERÍSTICAS ( SÓLIDOS POR PESO 49-60%, SÓLIDOS POR VOLUMEN 40-46%, VISCOSIDAD DE 110-160 UK A 25°C, DENSIDAD 0.9-1.2 TON/M3., BRILLO A 60°C, 90%, TIEMPO DE SECADO AL TACTO, < O = 6 HRS., TIEMPO DE SECADO DURO < O = 24 HRS., ADHERENCIA 100%, RENDIMIENTO EN SUP. LISA 8-10 M2/LT., DILUCIÓN MÁXIMA (AGUARRÁS, THINER), 15 %,  DE TUBO DE FIERRO NEGRO DE 8\" A 10\" DE DIÁMETRO, (POSTES, PASAMANOS, BARANDALES, ESTRUCTURAS, REDES, ETC.), TRABAJO TERMINADO, A DOS MANOS, INCLUYE: MATERIALES MENORES Y DE CONSUMO, PREPARACION DE LA SUPERFICIE, ANDAMIOS, HERRAMIENTAS, LIMPIEZA, MANO DE OBRA Y  EQUIPO DE SEGURIDAD. CUALQUIER ALTURA.","ML ","51.0000",0,"CERO PESOS 00/100 M.N.",0,264403]
["82.08(396)","LIMPIEZA                                          ",null,null,null,null,{"$f":"TEXT(SUM(G64:G64), \"$ #,##0.00 ;\")","v":"$ 0.00 "}]
[396428,"LIMPIEZA GENERAL DE LA OBRA, INCLUYE: ACARREO DEL MATERIAL PRODUCTO DE LA LIMPIEZA , FUERA DE LA OBRA.","M2 ","569.8000",0,"CERO PESOS 00/100 M.N.",0,264405]
[null,"RESUMEN DE PARTIDAS"]
["BAS-CON-03577","CONSTRUCCIÓN DE ESTRUCTURA CON LONARIA Y REHABILITACIÓN GENERAL EN LA ESCUELA PRIMARIA JOSÉ CLEMENTE OROZCO CCT 14EPR1034W, UBICADA EN LA CABECERA MUNICIPAL DE TAMAZULA DE GORDIANO, JALISCO.",null,null,null,null,{"$f":"G17","v":"$ 0.00 "}]
["01","PLAZA Y ANDADORES",null,null,null,null,{"$f":"G18","v":"$ 0.00 "}]
["01.01(140)","DEMOLICIONES, DESMONTAJES Y MECANICA DE SUELOS    ",null,null,null,null,{"$f":"G19","v":"$ 0.00 "}]
["01.02(150)","TRABAJOS PRELIMINARES                             ",null,null,null,null,{"$f":"G21","v":"$ 0.00 "}]
["01.03(160)","CIMENTACION                                       ",null,null,null,null,{"$f":"G23","v":"$ 0.00 "}]
["01.04(372)","PISOS                                             ",null,null,null,null,{"$f":"G25","v":"$ 0.00 "}]
["01.05(393)","PINTURA                                           ",null,null,null,null,{"$f":"G27","v":"$ 0.00 "}]
["01.06(396)","LIMPIEZA                                          ",null,null,null,null,{"$f":"G29","v":"$ 0.00 "}]
[82,"CUBIERTA PARA PATIO CIVICO",null,null,null,null,{"$f":"G31","v":"$ 0.00 "}]
["82.01(140)","DEMOLICIONES, DESMONTAJES Y MECANICA DE SUELOS    ",null,null,null,null,{"$f":"G32","v":"$ 0.00 "}]
["82.02(150)","TRABAJOS PRELIMINARES                             ",null,null,null,null,{"$f":"G34","v":"$ 0.00 "}]
["82.03(160)","CIMENTACION                                       ",null,null,null,null,{"$f":"G38","v":"$ 0.00 "}]
["82.04(200)","ESTRUCTURA                                        ",null,null,null,null,{"$f":"G50","v":"$ 0.00 "}]
["82.05(319)","ENTREPISOS, CUBIERTA Y ACABADOS DE AZOTEA         ",null,null,null,null,{"$f":"G55","v":"$ 0.00 "}]
["82.06(372)","PISOS                                             ",null,null,null,null,{"$f":"G57","v":"$ 0.00 "}]
["82.07(393)","PINTURA                                           ",null,null,null,null,{"$f":"G59","v":"$ 0.00 "}]
["82.08(396)","LIMPIEZA                                          ",null,null,null,null,{"$f":"G63","v":"$ 0.00 "}]
[]
["IMPORTE CON LETRA (IVA INCLUIDO)",null,null,null,null,"SUBTOTAL M.N.",{"$f":"TEXT(G17,  \"$ #,##0.00 ;\")","v":"$ 0.00 "}]
[{"$f":"UPPER(CONVERTIRNUM(ROUND( G17 * 1.16, 2)))","v":"CERO PESOS 00/100 M.N."},null,null,null,null,"IVA M.N.",{"$f":"TEXT(ROUND( G17 * 0.16, 2),  \"$ #,##0.00 ;\")","v":"$ 0.00 "}]
[null,null,null,null,null,"TOTAL M.N.",{"$f":"TEXT(ROUND( G17 * 1.16, 2),  \"$ #,##0.00 ;\")","v":"$ 0.00 "}]